Cogmind - Beta 11.1 *** ADVENTURER MODE // 2022.12.15 @ 16:49:23 Player: art-hropod Result: Self-destructed Performance ------------- Evolutions (2) 1000 Regions Visited (5) 1000 Robots Destroyed (13) 65 Value Destroyed (267) 267 Prototype IDs (1) 20 Alien Tech Used (0) 0 Bonus (300) 300 TOTAL SCORE: 2652 Bonus ------- Aligned with FarCom 300 Cogmind --------- Core Integrity 333/550 Matter 280/300 Energy 81/140 System Corruption 0% Temperature Cool (9) Movement Core (350) Ox6 Location -8/Materials Parts ------- > --- POWER (1) -------- Light Deuterium Engine > --- PROPULSION (4) --- (None) > --- UTILITY (4) ------ Small Storage Unit Sensor Array Signal Interpreter Improved Targeting Computer > --- WEAPON (2) ------- Latent Energy Streamer > --- INVENTORY (8) ---- Light Ion Engine Flight Unit Flight Unit Flight Unit Peak State ------------ > --- POWER ------------ Light Deuterium Engine > --- PROPULSION ------- Aluminum Leg > --- UTILITY ---------- Small Storage Unit Sensor Array Signal Interpreter Improved Targeting Computer > --- WEAPON ----------- Latent Energy Streamer Light Assault Rifle > --- INVENTORY -------- Light Ion Engine Light Deuterium Engine Flight Unit Flight Unit Flight Unit [Rating: 20] Favorites ----------- Power Ion Engine Engine Ion Engine Propulsion Aluminum Leg Leg Aluminum Leg Utility Small Storage Unit Device Sensor Array Storage Small Storage Unit Processor Improved Targeting Computer Weapon Light Assault Rifle Energy Gun Medium Laser Energy Cannon Latent Energy Streamer Ballistic Gun Light Assault Rifle Build | -11 -10 -10 -10 -9 -8 ------- Run | Scr Mat Min Exi Min Mat Slots Evolved 4 | . . . . . 4 Power . | . . . . . . Propulsion 2 | . . . . . 2 Utility 2 | . . . . . 2 Weapon . | . . . . . . Parts Attached 24 | 6 5 3 2 . 8 Power 6 | 1 1 2 . . 2 Engine 6 | 1 1 2 . . 2 Core . | . . . . . . Reactor . | . . . . . . Propulsion 5 | 2 2 1 . . . Treads . | . . . . . . Leg 5 | 2 2 1 . . . Wheel . | . . . . . . Hover . | . . . . . . Flight . | . . . . . . Utility 5 | 1 1 . . . 3 Device 2 | . 1 . . . 1 Storage 1 | 1 . . . . . Processor 2 | . . . . . 2 Hackware . | . . . . . . Protection . | . . . . . . Artifact . | . . . . . . Weapon 8 | 2 1 . 2 . 3 Energy Gun 4 | 1 1 . 1 . 1 Energy Cannon 3 | . . . 1 . 2 Ballistic Gun 1 | 1 . . . . . Ballistic Cannon . | . . . . . . Launcher . | . . . . . . Special Weapon . | . . . . . . Impact Weapon . | . . . . . . Slashing Weapon . | . . . . . . Piercing Weapon . | . . . . . . Special Melee Weapon . | . . . . . . Unidentified Prototypes 1 | . . . 1 . . Parts Lost 7 | . . 1 . . 6 Power 2 | . . 1 . . 1 Propulsion 2 | . . . . . 2 Utility . | . . . . . . Weapon 3 | . . . . . 3 Highest Loss Streak 6 | . . 1 . . 6 To Critical Strikes . | . . . . . . Average Slot Usage (%) 81 | . 84 85 85 85 67 Engine 12 | . 13 14 14 14 7 Leg 25 | . 26 28 28 28 13 Device 1 | . 2 . . . 7 Storage 13 | . 14 14 14 14 9 Processor 2 | . . . . . 15 Energy Gun 12 | . 13 14 14 14 6 Ballistic Gun 13 | . 14 14 14 14 8 Naked Turns . | . . . . . . Heaviest Build 14 | 11 12 13 13 13 14 Greatest Support 20 | 20 20 20 20 20 20 Greatest Overweight (x) 3 | . 3 . . . 1 Average Overweight (x) . | . . . . . . Largest Inventory Capacity 8 | 8 8 8 8 8 8 Average Capacity 7 | 7 8 8 8 8 8 Most Carried 8 | 4 8 8 8 8 8 Average Carried 6 | 2 4 7 7 8 6 Final Capacity 8 | 8 8 8 8 8 8 Final Carried 8 | 3 8 8 8 8 4 Class Distribution -------------------- 90% | Mutant 9% | Skirmisher Dominant Class ---------------- Mutant | -10/Materials Mutant | -10/Mines Mutant | -10/Exiles Mutant | -9/Mines Skirmisher | -8/Materials Resources | -11 -10 -10 -10 -9 -8 ----------- Run | Scr Mat Min Exi Min Mat Matter Collected 446 | 247 31 87 . . 81 Remotely . | . . . . . . Salvage Created 457 | . 87 165 . 71 134 Parts 28 | . 9 10 . 2 7 Haulers Intercepted 1 | . 1 . . . . Recyclers Shooed 1 | . 1 . . . . Parts Field Recycled . | . . . . . . Retrieved Matter . | . . . . . . Parts Self-Destructed . | . . . . . . Prevented . | . . . . . . Kills | -11 -10 -10 -10 -9 -8 ------- Run | Scr Mat Min Exi Min Mat Combat Hostiles Destroyed 8 | . 1 5 . . 2 Guns 8 | . 1 5 . . 2 Classes Destroyed 7 | . 3 2 . 1 1 Builder 1 | . . 1 . . . Hauler 1 | . 1 . . . . Recycler 1 | . . . . 1 . Watcher 2 | . 1 . . . 1 Swarmer 4 | . 1 3 . . . Grunt 3 | . . 2 . . 1 Sentry 1 | . . . . . 1 Best Kill Streak 2 | . 2 2 . 1 2 Combat Bots Only 2 | . 1 2 . . 2 Max Kills in Single Turn 1 | . 1 1 . 1 1 Gunslinging . | . . . . . . Exploded . | . . . . . . Melee . | . . . . . . Uniques/NPCs Destroyed . | . . . . . . Combat | -11 -10 -10 -10 -9 -8 -------- Run | Scr Mat Min Exi Min Mat Damage Taken 869 | . 62 215 . 42 550 Core 278 | . 8 45 . 8 217 Absorbed by Shields . | . . . . . . Core Remaining (%) 87 | 100 . . . 75 . Volleys Fired 61 | . 11 19 . 1 30 Largest 2 | . 2 2 . 2 2 Hottest 70 | . 70 70 . 60 70 Shots Fired 104 | . 22 38 . 2 42 Gun 104 | . 22 38 . 2 42 Cannon . | . . . . . . Launcher . | . . . . . . Special . | . . . . . . Kinetic 61 | . 11 19 . 1 30 Thermal 37 | . 11 19 . . 7 Explosive . | . . . . . . Electromagnetic 6 | . . . . 1 5 Robot Hit Streak 33 | . 5 17 . . 33 Robot Miss Streak 5 | . 2 2 . 2 5 Penetration Max . | . . . . . . Secondary Targets . | . . . . . . Shots Hit Robots 78 | . 14 28 . . 36 Core Hits 31 | . 6 11 . 1 13 Critical Kills . | . . . . . . Critical Parts Destroyed . | . . . . . . Critical Strikes 4 | . 1 2 . . 1 Burn 3 | . 1 2 . . . Corrupt 1 | . . . . . 1 Melee Attacks . | . . . . . . Impact . | . . . . . . Slashing . | . . . . . . Piercing . | . . . . . . Sneak Attacks . | . . . . . . Combat Hostiles . | . . . . . . Follow-up Attacks . | . . . . . . Damage Inflicted 775 | . 140 273 . 15 347 Guns 775 | . 140 273 . 15 347 Cannons . | . . . . . . Explosions . | . . . . . . Melee . | . . . . . . Ramming . | . . . . . . Kinetic 364 | . 65 122 . . 177 Thermal 313 | . 75 151 . . 87 Explosive . | . . . . . . Electromagnetic 98 | . . . . 15 83 Impact . | . . . . . . Slashing . | . . . . . . Piercing . | . . . . . . Highest Corruption . | . . . . . . Average Corruption . | . . . . . . Corruption Purged . | . . . . . . Corruption Blocked . | . . . . . . Overload Shots . | . . . . . . Overflow Damage . | . . . . . . Projectiles . | . . . . . . Explosions . | . . . . . . Melee . | . . . . . . Knockbacks . | . . . . . . Impact . | . . . . . . Kinetic . | . . . . . . Secondary . | . . . . . . Self-Inflicted Damage . | . . . . . . Shots . | . . . . . . Rammed . | . . . . . . Targets Rammed . | . . . . . . Kicked . | . . . . . . Crushed . | . . . . . . Highest Temperature 221 | . 70 221 . 29 67 Average Temperature 52 | . 25 81 . 19 24 Received Heat Transfer 336 | . 51 111 . 30 144 Siege Activations . | . . . . . . Robots Corrupted . | . . . . . . Combat Hostiles . | . . . . . . Parts Fried 2 | . . . . . 2 Impact Corruptions . | . . . . . . Robots Melted . | . . . . . . Combat Hostiles . | . . . . . . Parts Melted 2 | . . 2 . . . Heat Transferred 1147 | . 296 592 . . 259 Parts Sabotaged . | . . . . . . Parts Stolen . | . . . . . . Parts Stripped . | . . . . . . Power Chain Reactions . | . . . . . . Missiles Intercepted . | . . . . . . Alert | -11 -10 -10 -10 -9 -8 ------- Run | Scr Mat Min Exi Min Mat Peak Influence 182 | . 69 182 . 5 58 Initial 22 | . . 22 . . 1 Average 43 | . 36 64 . . 21 Maximum Alert Level . | . . . . . . Low Security (%) 100 | 100 100 100 . 100 100 Level 1 . | . . . . . . Level 2 . | . . . . . . Level 3 . | . . . . . . Level 4 . | . . . . . . Level 5 . | . . . . . . High Security . | . . . . . . Max Security . | . . . . . . Squads Dispatched 1 | . . . . . 1 Investigation . | . . . . . . Extermination . | . . . . . . Reinforcement 1 | . . . . . 1 Assault . | . . . . . . Garrison . | . . . . . . Intercept . | . . . . . . Searches Triggered . | . . . . . . Construction Impeded . | . . . . . . Haulers Reinforced . | . . . . . . Active Scanning Responses . | . . . . . . Cargo Convoy Interrupts . | . . . . . . Stealth | -11 -10 -10 -10 -9 -8 --------- Run | Scr Mat Min Exi Min Mat Distress Signals 2 | . 1 . . . 1 Communications Jammed . | . . . . . . Distress Signals . | . . . . . . Times Spotted 26 | . 6 10 . 2 8 Peak Tracking Total 4 | . 4 3 . 2 4 Tactical Retreats 2 | . . 2 . . . Traps | -11 -10 -10 -10 -9 -8 ------- Run | Scr Mat Min Exi Min Mat Traps Triggered 2 | . 2 . . . . Indirectly . | . . . . . . Trap Hack Attempts . | . . . . . . Triggered . | . . . . . . Disarmed . | . . . . . . Reprogrammed . | . . . . . . Reused . | . . . . . . Traps Extracted . | . . . . . . Installed . | . . . . . . Triggered . | . . . . . . Machines | -11 -10 -10 -10 -9 -8 ---------- Run | Scr Mat Min Exi Min Mat Machines Disabled . | . . . . . . Max in Single Turn . | . . . . . . Machines Sabotaged . | . . . . . . Garrisons Compromised . | . . . . . . Overloaded Fab Kills . | . . . . . . Hacking | -11 -10 -10 -10 -9 -8 --------- Run | Scr Mat Min Exi Min Mat Machines Accessed 1 | . 1 . . . . Terminals 1 | . 1 . . . . Fabricators . | . . . . . . Repair Stations . | . . . . . . Recycling Units . | . . . . . . Scanalyzers . | . . . . . . Garrison Access . | . . . . . . Total Hacks 2 | . 2 . . . . Successful 1 | . 1 . . . . Failed 1 | . 1 . . . . Catastrophic . | . . . . . . Database Lockouts . | . . . . . . Manual 3 | . 2 . 1 . . Terminals 2 | . 2 . . . . Fabricators . | . . . . . . Repair Stations . | . . . . . . Recycling Units . | . . . . . . Scanalyzers . | . . . . . . Garrison Access . | . . . . . . Terminal Hacks 1 | . 1 . . . . Transport Status 1 | . 1 . . . . Fabricator Hacks . | . . . . . . Repair Station Hacks . | . . . . . . Recycling Unit Hacks . | . . . . . . Scanalyzer . | . . . . . . Garrison Access Hacks . | . . . . . . Unauthorized Hacks . | . . . . . . Terminals . | . . . . . . Fabricators . | . . . . . . Repair Stations . | . . . . . . Recycling Units . | . . . . . . Scanalyzers . | . . . . . . Garrison Access . | . . . . . . Data Cores Recovered . | . . . . . . Used . | . . . . . . Hacking Detections 1 | . 1 . . . . Full Trace Events . | . . . . . . Feedback Events . | . . . . . . Feedback Blocked . | . . . . . . Robot Schematics Acquired . | . . . . . . Robots Built . | . . . . . . Authchips . | . . . . . . Time . | . . . . . . Total Robot Build Rating . | . . . . . . Part Schematics Acquired . | . . . . . . Parts Built . | . . . . . . Authchips . | . . . . . . Time . | . . . . . . Total Part Build Rating . | . . . . . . Parts Repaired . | . . . . . . Time . | . . . . . . Parts Recycled . | . . . . . . Recycled Matter . | . . . . . . Retrieved Matter . | . . . . . . Retrieved Components . | . . . . . . Parts Scanalyzed . | . . . . . . Part Schematics Acquired . | . . . . . . Parts Damaged . | . . . . . . Bothacking | -11 -10 -10 -10 -9 -8 ------------ Run | Scr Mat Min Exi Min Mat Used RIF Installer . | . . . . . . Robots Hacked . | . . . . . . Non-combat . | . . . . . . Combat . | . . . . . . Robot Hacks Applied . | . . . . . . Relay Couplers Released . | . . . . . . Fabnet Peak Effective % . | . . . . . . Robots Rewired . | . . . . . . Allies Hacked . | . . . . . . Hacks Repelled . | . . . . . . Allies | -11 -10 -10 -10 -9 -8 -------- Run | Scr Mat Min Exi Min Mat Total Allies . | . . . . . . Largest Group . | . . . . . . Highest-Rated Group . | . . . . . . Highest-Rated Ally . | . . . . . . Total Orders . | . . . . . . Ally Attacks . | . . . . . . Total Damage . | . . . . . . Kills . | . . . . . . Allies Corrupted . | . . . . . . Allies Melted . | . . . . . . Intel | -11 -10 -10 -10 -9 -8 ------- Run | Scr Mat Min Exi Min Mat Robot Analysis Total . | . . . . . . Derelict Logs Recovered . | . . . . . . Drone Launches . | . . . . . . Drone Recoveries . | . . . . . . Exploration | -11 -10 -10 -10 -9 -8 ------------- Run | Scr Mat Min Exi Min Mat Turns Passed 1234 | 86 175 491 260 22 200 Spaces Moved 851 | 65 104 358 212 17 95 Core 14 | 9 2 . . . 3 Treads . | . . . . . . Legs 837 | 56 102 358 212 17 92 Wheels . | . . . . . . Hover . | . . . . . . Flight . | . . . . . . Fastest Speed 50 | 50 120 120 120 120 100 Average Speed 119 | 110 121 120 120 120 122 Slowest Speed 200 | 120 200 120 120 120 190 Overloaded Moves . | . . . . . . Propulsion Burnouts . | . . . . . . Robots Hopped . | . . . . . . Cave-ins Triggered . | . . . . . . Exploration Rate (%) 31 | 6 22 76 59 10 14 Regions Visited 5 Branch Regions 3 Pre-discovered Areas . | . . . . . . Known Exits Taken . | . . . . . . Unknown Exits Taken 5 | 1 1 1 1 1 . Scrap Searched 1 | . . 1 . . . Spaces Dug . | . . . . . . Terrain Destroyed . | . . . . . . Melee . | . . . . . . Projectile . | . . . . . . AOE . | . . . . . . Terrain Rammed . | . . . . . . Walls Destroyed . | . . . . . . Machines Disabled . | . . . . . . Actions | -11 -10 -10 -10 -9 -8 --------- Run | Scr Mat Min Exi Min Mat Total 975 | 79 133 385 218 17 143 Wait 10 | . 4 . . . 6 Move 846 | 64 103 357 211 16 95 Hop . | . . . . . . Pick Up 26 | 9 10 3 2 . 2 Fast Attach 3 | . . 1 1 . 1 Attach 19 | 6 5 1 . . 7 Detach 1 | . . . . . 1 Swap 2 | . . 1 1 . . Drop 7 | . . 3 3 . 1 Fire 61 | . 11 19 . 1 30 Melee . | . . . . . . Ram . | . . . . . . Kick . | . . . . . . Crush . | . . . . . . Escape Stasis . | . . . . . . Rewire . | . . . . . . Trap . | . . . . . . Miscellaneous . | . . . . . . Route ------- -11/Scrapyard -10/Materials -10/Mines -10/Exiles -9/Mines -8/Materials History --------- Turn | Location | Event 6 | -11/Scrapyard | Discovered new exit (range 15) 87 | -11/Scrapyard | Entered Materials 149 | -10/Materials | Discovered new exit (range 11) 262 | -10/Materials | Entered Mines 313 | -10/Mines | Build established: Mutant 500 | -10/Mines | Assembled infested the area 531 | -10/Mines | Met 8R-AWN 748 | -10/Mines | Discovered new exit (range 5) 753 | -10/Mines | Entered Exiles 782 | -10/Exiles | Welcomed by 8R-AWN 805 | -10/Exiles | Met EX-HEX 842 | -10/Exiles | Met EX-BIN 855 | -10/Exiles | Aligned with FarCom system 857 | -10/Exiles | Given EX-Vault access code 884 | -10/Exiles | Opened EX-Vault 892 | -10/Exiles | Found Prototype Energy Cannon 893 | -10/Exiles | Identified Latent Energy Streamer 926 | -10/Exiles | Warned to stay clear of 0b10 Research branches 959 | -10/Exiles | Met EX-DEC 1002 | -10/Exiles | Discovered new exit (range 10) 1013 | -10/Exiles | Left Exiles lab with Latent Energy Streamer 1013 | -10/Exiles | Entered Mines 1017 | -9/Mines | Discovered new exit (range 14) 1035 | -9/Mines | Entered Materials 1035 | -8/Materials | Evolved 4 slots: Propulsion x2, Utility x2 1235 | -8/Materials | Self-destructed Last Messages --------------- 01161_ Penetrated by Slug. 01165_ EM Pulse Gun destroyed. 01187_ Y-45 Defender destroyed. 01187_ Penetrated by Slug. 01194_ Med. Laser destroyed. 01196_ R-06 Scavenger collects Lgt. Armor Plating. 01199_ R-06 Scavenger collects Imp. Ion Engine. 01202_ Aluminum Leg destroyed. 01206_ G-47 Trooper destroyed. 01206_ R-06 Scavenger collects Lgt. Nuclear Core. 01207_ Slug penetrates R-06 Scavenger. 01207_ R-06 Scavenger destroyed. 01208_ Acquired 50 matter. 01210_ Slug penetrates Wall. 01213_ Penetrated by Slug. 01219_ Lgt. Deuterium Engine destroyed. 01222_ Penetrated by Slug. 01228_ Lgt. Assault Rifle destroyed. 01229_ Acquired 10 matter. 01231_ Penetrated by Slug. Map ----- +----------------------------------------------------+ | "Y" ####/#####+##### #??????? #????????????????? | | """ #?# #???# ########+##???????????????? | | #####?# #???# # #???????????????? | | ??????# #???# # === #???????????????? | | ??????# #???# # == #???????????????? | | ??????###+######???# # == * #???????????????? | | ???????? ?????????# # #???????????????? | | ???????###?????????# # #???????????????? | | ???????????????????# # #???????????????? | | ???????????????????# # #???????????????? | | ???????????????????# #####+###############?????? | | ???????????????????# ????? | | ???????????????????# ????? | | ???????????????????# ????? | | ???????????????????######## #######+#####??????? | | ??????????????????????????# #??????????????????? | | ??????????????????????????# #???x??????????????? | | ??????????####+############ #??????????????????? | | ??????? #??????????????????? | | ??????? #??????????????????? | | ??????? xx #??????????????????? | | ???????? #####+##########x #??????????????????? | | ??????????????????# = #u #????x?????????????? | | ??????????????xg??# #u #??????????????????? | | ??????????????????#!!* *ghg #??????????????????? | | ??????????????????#!!* *@#x #??????????????????? | | ??????????????????#!* * # #??????????????????? | | ??????????????????######### #??????????????????? | | ??????????????????????????# #??????????????????? | | ??????????????????????????# x#??????????????????? | | ??????????????????????????# #??????????????????? | | ??????????????????????????# !%#??????????????????? | | ??????????????????????????# #??????????????????? | | ??????????????????????????+ +??????????????????? | | ??????????????????????????# #??????????????????? | | ??????????????????????????# #??????????????????? | | ??????????????????????????? #??????????????????? | | ??????????????????????????? #??????????????????? | | ??????????????????????????? #??????????????????? | | ??????????????????????????? #??????????????????? | | ??????????????????????????? #??????????????????? | | ??????????????????????????? #??????????????????? | | ??????????????????????????? ???????????????????? | | ?????????????????????????????????????????????????? | | ?????????????????????????????????????????????????? | | ?????????????????????????????????????????????????? | | ?????????????????????????????????????????????????? | | ?????????????????????????????????????????????????? | | ?????????????????????????????????????????????????? | | ?????????????????????????????????????????????????? | +----------------------------------------------------+ Best States ------------- Heat Dissipation 31 Energy Generation 14 Energy Capacity 250 Matter Stores 300 Matter Capacity 300 Sight Range 16 Robot Scan Range 14 Terrain Scan Density 10 Resistance: KI 20 Resistance: TH 20 Resistance: EX 20 Resistance: EM 20 Resistance: I 20 Resistance: S 20 Resistance: P 20 Evasion (%) 55 Targeting Accuracy 6 Offensive Hacking 10 Item Schematics ----------------- None Robot Schematics ------------------ None Fabricated ------------ Nothing Alien Tech Used ----------------- None Achievements -------------- None Challenges ------------ None Game ------ Seed HeavyIntegratedRouter Manual? 0 Play Time 00:17:16 Cumulative 23.6 hours Start 2022.12.15 @ 16:35:28 End 2022.12.15 @ 16:49:23 Sessions 1 Manual Loads 0 Difficulty Adventurer Special Mode None Game No. 33 Rogue 25 Adventurer 3 Explorer 5 Win Type - Total 1 Types 1/0/0/0/0/0/0/0/0 Lore% 13 Gallery% 28 Achievement% 22 Wizard Run 0 Options --------- ASCII 0 Keyboard 0 Movement Mouse Keybinds 0 Fullscreen 1 Font 32/SmallcapsGlow Map View 63x52 Tactical HUD 1 Map Filters NONE Filters NONE Steam X RUN: 44df7c73-5b3f-43da-ad82-9cfe3015caad